bitfinex/quotes_SOLUSD_20250402
["timestamp","ask_amount","ask_price","bid_price","bid_amount"]
[1743553197296,0.03,126.37,126.36,79.7399]
[1743553198993,19.56307465,126.37,126.34,0.063]
[1743553199206,19.53307465,126.35,126.34,0.063]
[1743553199502,19.53307465,126.36,126.34,0.063]
[1743553200688,19.56307465,126.37,126.34,0.063]
[1743553201303,0.03,126.37,126.34,0.063]
[1743553201676,19.56307465,126.37,126.34,0.063]
[1743553202190,19.56307465,126.37,126.36,0.063]
[1743553202598,19.84739779,126.37,126.36,0.063]
[1743553203505,27.76059779,126.37,126.36,0.063]
[1743553203687,19.56307465,126.37,126.36,0.063]
[1743553203882,0.03,126.37,126.36,0.063]
[1743553209207,19.56307465,126.37,126.36,0.063]
[1743553210192,27.47627465,126.37,126.36,0.063]
[1743553211013,27.76059779,126.37,126.36,0.063]
[1743553214089,27.47627465,126.37,126.36,0.063]
[1743553214290,0.03,126.37,126.36,0.063]
[1743553214799,0.03,126.37,126.36,7.9768]
[1743553215408,0.03,126.37,126.36,0.063]
[1743553221227,0.03,126.37,126.36,79.8029]
[1743553221406,6.47767916,126.47,126.38,0.28432314]
[1743553221606,27.44007465,126.47,126.39,18.64964886]
[1743553221823,7.907,126.47,126.41,24.81354886]
[1743553222124,27.46967465,126.48,126.41,104.52344886]
[1743553223117,7.9366,126.48,126.42,7.9101]
[1743553223326,0.03,126.48,126.42,87.62]
[1743553223623,0.03,126.48,126.43,18.64964886]
[1743553223815,0.03,126.48,126.44,0.28432314]
[1743553224006,0.03,126.48,126.45,18.64964886]
[1743553224206,0.03,126.48,126.45,20.23043345]
[1743553224602,0.03,126.48,126.46,0.28432314]
[1743553225302,0.03,126.48,126.47,7.907]
[1743553225497,0.03,126.48,126.47,108.13150277]
[1743553225702,0.03,126.48,126.47,107.84717963]
[1743553225909,0.03,126.48,126.47,98.35954886]
[1743553226112,0.03,126.48,126.47,79.7099]
[1743553226824,0.03,126.48,126.43,79.7099]
[1743553227409,0.03,126.48,126.44,18.64964886]
[1743553228225,0.03,126.48,126.45,0.28432314]
[1743553228410,0.03,126.48,126.45,7.30432314]
[1743553228618,0.03,126.48,126.46,18.64964886]
[1743553228816,0.03,126.48,126.46,98.35954886]
[1743553229325,0.03,126.48,126.47,7.907]
[1743553229622,0.03,126.48,126.47,106.550872]
[1743553229824,0.03,126.48,126.47,114.4686137]
[1743553230417,0.03,126.48,126.47,104.69674886]
[1743553233132,0.03,126.48,126.47,112.60374886]
[1743553237032,0.03,126.48,126.47,112.888072]
[1743553237215,0.03,126.5,126.48,79.6799]
[1743553237616,0.03,126.5,126.49,7.0]
[1743553237823,0.03,126.5,126.49,86.6799]
[1743553238423,0.03,126.5,126.49,105.613872]
[1743553240714,0.03,126.5,126.49,113.519572]
[1743553249850,0.03,126.52,126.51,98.553872]
[1743553251723,0.03,126.52,126.51,106.458372]
[1743553252347,0.03,126.52,126.51,98.26954886]
[1743553257350,0.03,126.52,126.51,79.6199]
[1743553261459,0.03,126.52,126.48,0.063]
[1743553261460,19.51656994,126.52,126.48,79.6829]
[1743553261644,19.48656994,126.51,126.48,79.6829]
[1743553262039,27.39166994,126.5,126.48,79.6829]
[1743553262241,0.03,126.52,126.48,79.6829]
[1743553262242,27.39126994,126.51,126.48,79.6829]
[1743553262440,7.9047,126.51,126.48,79.6829]
[1743553262662,27.39126994,126.51,126.48,79.6829]
[1743553266055,7.9047,126.51,126.48,79.6829]
[1743553267172,27.39126994,126.51,126.48,79.6829]
[1743553269273,27.42066994,126.52,126.48,79.6829]
[1743553271849,0.03,126.52,126.49,18.64964886]
[1743553272256,0.03,126.52,126.49,98.26954886]
[1743553273966,19.51656994,126.52,126.49,79.6199]
[1743553274357,19.51656994,126.52,126.49,79.6829]
[1743553274665,19.48656994,126.51,126.49,79.6829]
[1743553275466,19.48656994,126.5,126.49,79.6829]
[1743553275773,27.39166994,126.5,126.49,0.063]
[1743553279879,1.5687,126.52,126.49,79.6829]
[1743553280088,0.03,126.52,126.51,7.9045]
[1743553281485,0.03,126.52,126.51,106.17404886]
[1743553282186,0.03,126.52,126.51,98.26954886]
[1743553282781,0.03,126.52,126.51,98.553872]
[1743553282966,0.03,126.52,126.51,106.458372]
[1743553291478,0.03,126.52,126.51,98.553872]
[1743553291880,0.03,126.52,126.51,106.458372]
[1743553293096,0.03,126.52,126.51,98.26954886]
[1743553293276,19.51656994,126.52,126.51,79.6199]
[1743553295491,27.42036994,126.52,126.51,79.6199]
[1743553297180,27.42036994,126.52,126.49,0.063]
[1743553297897,0.03,126.52,126.49,98.33254886]
[1743553298505,0.03,126.52,126.5,0.063]
[1743553298695,0.03,126.52,126.51,18.64964886]
[1743553299378,0.03,126.52,126.51,98.553872]
[1743553299798,0.03,126.52,126.51,106.458372]
[1743553306607,0.03,126.52,126.51,106.17404886]
[1743553306795,0.03,126.52,126.51,98.26954886]
[1743553306992,0.03,126.52,126.51,79.6199]
[1743553309011,19.51656994,126.52,126.5,0.063]
[1743553310008,27.42086994,126.52,126.5,0.063]
[1743553311705,0.03,126.52,126.5,0.063]
[1743553311910,7.9339,126.52,126.5,0.063]
[1743553312908,27.42046994,126.52,126.5,0.063]
[1743553313614,7.9339,126.52,126.5,0.063]
[1743553315716,0.03,126.52,126.5,0.063]
[1743553318798,0.03,126.52,126.5,98.33254886]
[1743553320023,0.03,126.52,126.5,106.23744886]
[1743553320524,19.51656994,126.52,126.5,79.6829]
[1743553320704,19.48656994,126.51,126.5,79.6829]
[1743553321502,0.03,126.52,126.5,79.6829]
[1743553321699,27.39106994,126.51,126.5,79.6829]
[1743553322519,35.10156994,126.51,126.5,0.063]
[1743553322716,0.28432314,126.5,126.49,0.063]
[1743553323022,39.25746302,126.5,126.48,0.063]
[1743553323224,46.15746302,126.49,126.48,0.063]
[1743553323398,46.15746302,126.49,126.43,79.6199]
[1743553323603,19.48656994,126.45,126.43,79.6199]
[1743553323810,27.39536994,126.44,126.4,91.95134286]
[1743553324011,19.48656994,126.43,126.41,30.0]
[1743553324825,19.48656994,126.43,126.4,79.6199]
[1743553325531,19.48656994,126.41,126.38,79.6199]
[1743553325826,19.48656994,126.39,126.37,0.063]
[1743553326015,19.48656994,126.38,126.37,0.063]
[1743553327039,21.08346994,126.38,126.37,0.063]
[1743553333636,29.13823151,126.38,126.37,0.063]
[1743553338535,21.08346994,126.38,126.37,0.063]
[1743553338745,19.48656994,126.39,126.37,0.063]
[1743553339417,19.48656994,126.38,126.37,0.063]
[1743553339613,19.48656994,126.39,126.37,0.063]
[1743553340639,27.39856994,126.39,126.37,0.063]
[1743553341020,19.48656994,126.38,126.37,0.063]
[1743553344440,14.8115,126.4,126.37,0.063]
[1743553344637,22.9209,126.42,126.37,0.063]
[1743553344833,19.48656994,126.4,126.37,0.063]
[1743553345044,19.48656994,126.39,126.37,0.063]
[1743553345356,19.48656994,126.38,126.37,0.063]
[1743553346142,19.48656994,126.39,126.37,0.063]
[1743553347850,19.48656994,126.41,126.37,0.063]
[1743553349027,19.48656994,126.39,126.37,0.063]
[1743553350352,19.48656994,126.38,126.37,0.063]
[1743553351063,27.39916994,126.38,126.37,0.063]
[1743553352155,7.9122,126.39,126.37,0.063]
[1743553352342,27.39786994,126.4,126.37,0.063]
[1743553352658,19.48656994,126.39,126.37,0.063]
[1743553353250,27.39896994,126.39,126.37,0.063]
[1743553353834,19.48656994,126.38,126.37,0.063]
[1743553354847,27.39916994,126.38,126.37,0.063]
[1743553355730,20.41855865,126.38,126.37,0.063]
[1743553359537,20.56072022,126.38,126.37,0.063]
[1743553374174,20.41855865,126.38,126.37,0.063]
[1743553376983,20.70288179,126.38,126.37,0.063]
[1743553377157,0.28432314,126.37,126.36,0.063]
[1743553377355,81.46376525,126.37,126.36,0.063]
[1743553378675,87.79616525,126.37,126.35,0.063]
[1743553378879,81.46376525,126.36,126.35,0.063]
[1743553379477,89.37756525,126.36,126.35,0.063]
[1743553379661,18.933972,126.35,126.34,0.063]
[1743553379866,38.33993065,126.35,126.34,0.063]
[1743553380962,20.28432314,126.32,126.31,0.063]
[1743553381185,32.50595865,126.32,126.31,0.063]
[1743553381479,20.0,126.33,126.31,0.063]
[1743553381662,7.9095,126.43,126.33,18.64964886]
[1743553381856,7.9095,126.43,126.34,0.14216157]
[1743553382055,13.74937491,126.44,126.34,0.14216157]
[1743553382056,12.17767491,126.44,126.36,25.13221043]
[1743553382260,32.59273356,126.44,126.36,104.75211043]
[1743553382560,12.50595865,126.4,126.36,85.9603]
[1743553382871,6.98,126.42,126.36,85.9603]
[1743553383377,6.98,126.42,126.37,18.64964886]
[1743553383585,24.68363356,126.43,126.38,7.9126]
[1743553383783,12.17767491,126.43,126.38,87.5325]
[1743553385282,12.50595865,126.44,126.38,87.5325]
[1743553385584,12.50595865,126.43,126.38,87.5325]
[1743553385883,19.52713343,126.43,126.38,87.5325]
[1743553387358,19.52713343,126.4,126.38,79.6199]
[1743553387562,19.52713343,126.4,126.36,85.9603]
[1743553388567,19.52713343,126.4,126.36,93.8741]
[1743553388770,19.52713343,126.41,126.36,93.8741]
[1743553391486,6.96,126.42,126.36,93.8741]
[1743553391889,19.52713343,126.43,126.36,113.6588]
[1743553393788,6.96,126.44,126.38,1.5072]
[1743553393789,20.0,126.44,126.38,1.5072]
[1743553393970,19.52713343,126.45,126.39,18.64964886]
[1743553394165,19.55713343,126.48,126.4,0.14216157]
[1743553394375,19.55713343,126.48,126.41,18.64964886]
[1743553394967,0.03,126.48,126.41,18.64964886]
[1743553395178,0.03,126.48,126.43,7.9095]
[1743553395388,0.03,126.48,126.43,87.5294]
[1743553395780,0.03,126.48,126.44,18.64964886]
[1743553396126,0.03,126.48,126.44,98.26954886]
[1743553397386,0.03,126.48,126.45,7.9082]
[1743553397588,0.03,126.48,126.46,18.64964886]
[1743553397793,0.03,126.48,126.46,98.26954886]
[1743553399491,0.03,126.48,126.46,79.6199]
[1743553405684,7.907,126.47,126.46,79.6199]
[1743553406076,27.43413343,126.47,126.46,79.6199]
[1743553406695,27.43413343,126.47,126.42,86.0084]
[1743553409013,27.43413343,126.47,126.42,93.9183]
[1743553410103,27.46373343,126.48,126.42,93.9183]
[1743553411288,27.46373343,126.48,126.43,26.55874886]
[1743553411518,0.03,126.48,126.43,106.17864886]
[1743553412514,19.55713343,126.48,126.43,106.17864886]
[1743553413110,0.03,126.48,126.43,106.17864886]
[1743553413322,0.03,126.48,126.44,0.14216157]
[1743553413526,0.03,126.48,126.45,7.9082]
[1743553413701,0.03,126.48,126.45,87.5281]
[1743553415417,0.03,126.48,126.45,79.6199]
[1743553417921,0.03,126.48,126.45,87.528]
[1743553418300,0.03,126.48,126.46,18.64964886]
[1743553420319,0.03,126.48,126.45,79.6199]
[1743553421599,0.03,126.48,126.45,87.528]
[1743553422513,0.03,126.48,126.46,18.64964886]
[1743553423325,0.03,126.48,126.46,98.26954886]
[1743553423729,0.03,126.48,126.47,0.14216157]
[1743553424437,0.03,126.51,126.5,26.55474886]
[1743553424725,0.03,126.51,126.5,35.275372]
[1743553424933,0.0001,126.52,126.51,19.433972]
[1743553425137,0.0001,126.52,126.51,21.01380131]
[1743553425436,0.0001,126.52,126.51,20.51380131]
[1743553425619,0.0001,126.52,126.51,157.41380131]
[1743553426414,0.0001,126.52,126.51,165.31830131]
[1743553426617,0.0001,126.52,126.51,163.738472]
[1743553427431,0.0001,126.52,126.51,170.698472]
[1743553427815,0.0001,126.52,126.51,170.55631043]
[1743553428908,0.0001,126.52,126.51,113.24621043]
[1743553431828,0.0001,126.52,126.51,105.19954886]
[1743553432946,0.0001,126.52,126.51,86.5499]
[1743553433223,0.0001,126.52,126.51,79.5899]
[1743553433728,19.52723343,126.52,126.49,79.5899]
[1743553433932,0.0001,126.52,126.49,79.5899]
[1743553434128,0.0001,126.52,126.49,87.4955]
[1743553434330,0.0001,126.52,126.5,18.64964886]
[1743553434528,0.0001,126.52,126.5,98.23954886]
[1743553435736,0.0001,126.52,126.51,7.9045]
[1743553437941,0.0001,126.52,126.51,87.4944]
[1743553439641,0.0001,126.52,126.51,79.5899]
[1743553440520,0.0001,126.52,126.51,87.4944]
[1743553441030,0.0001,126.52,126.51,79.5899]
[1743553442340,0.0001,126.52,126.51,87.4944]
[1743553447717,0.0001,126.52,126.51,106.14404886]
[1743553447921,0.0001,126.52,126.51,106.28621043]
[1743553448536,0.0001,126.52,126.51,106.31621043]
[1743553451838,0.0001,126.52,126.51,79.6199]
[1743553455457,0.0001,126.52,126.51,87.5244]
[1743553459553,0.0001,126.52,126.51,79.6199]
[1743553459760,12.47137481,126.52,126.51,79.6199]
[1743553459943,19.04397481,126.52,126.51,0.03]
[1743553460546,26.94777481,126.52,126.51,0.03]
[1743553461658,27.23209795,126.52,126.51,0.03]
[1743553462442,0.28432314,126.51,126.49,0.03]
[1743553462647,12.47127481,126.5,126.49,0.03]
[1743553464065,20.37637481,126.5,126.49,0.03]
[1743553467573,12.47127481,126.5,126.49,0.03]
[1743553467871,26.94817481,126.52,126.49,0.03]
[1743553469073,0.0001,126.52,126.49,79.6199]
[1743553471052,0.0001,126.52,126.49,87.5252]
[1743553476177,0.0001,126.52,126.5,18.64964886]
[1743553476367,0.0001,126.52,126.51,26.709872]
[1743553476564,0.03,126.54,126.53,0.14216157]
[1743553476773,0.03,126.54,126.53,79.73206157]
[1743553477084,0.03,126.54,126.53,105.423872]
[1743553477264,0.03,126.54,126.53,105.28171043]
[1743553477855,0.03,126.54,126.53,79.5899]
[1743553478278,19.50762469,126.54,126.53,79.5899]
[1743553478669,19.50762469,126.54,126.5,79.5899]
[1743553479382,0.03,126.54,126.5,79.5899]
[1743553479785,0.03,126.54,126.5,87.4949]
[1743553480082,19.50762469,126.54,126.5,87.4949]
[1743553482080,0.03,126.54,126.53,18.64964886]
[1743553482278,0.03,126.54,126.53,98.23954886]
[1743553484384,0.03,126.54,126.53,106.14274886]
[1743553484962,0.03,126.54,126.53,106.28491043]
[1743553486480,0.03,126.54,126.53,106.14274886]
[1743553490396,0.03,126.54,126.53,106.28491043]
[1743553498195,0.03,126.6,126.54,0.14216157]
[1743553498387,0.03,126.6,126.55,18.64964886]
[1743553499796,0.03,126.6,126.56,7.9013]
[1743553502375,0.03,126.6,126.56,87.4912]
[1743553507416,0.03,126.6,126.57,18.64964886]
[1743553507594,0.03,126.6,126.57,98.23954886]
[1743553508708,0.03,126.6,126.58,7.9001]
[1743553509497,0.03,126.6,126.59,18.64964886]
[1743553511015,0.03,126.6,126.59,26.54914886]
[1743553511802,0.03,126.6,126.59,106.28121043]
[1743553512113,0.03,126.61,126.6,0.14216157]
[1743553512314,0.03,126.63,126.62,18.64964886]
[1743553513317,0.03,126.63,126.62,26.54724886]
[1743553513714,0.03,126.63,126.62,18.64964886]
[1743553513912,0.03,126.63,126.61,79.5599]
[1743553515401,0.03,126.63,126.61,87.458]
[1743553515814,0.03,126.63,126.61,79.5599]
[1743553516012,0.03,126.63,126.62,18.64964886]
[1743553516229,0.03,126.63,126.62,98.493872]
[1743553516620,0.03,126.63,126.62,105.393872]
[1743553517414,0.03,126.63,126.62,113.291472]
[1743553519800,0.03,126.63,126.62,113.14931043]
[1743553520004,0.03,126.63,126.62,106.10714886]
[1743553520230,0.03,126.63,126.62,98.20954886]
[1743553520425,0.03,126.63,126.62,79.5599]
[1743553524334,32.49050227,126.63,126.6,79.5599]
[1743553524533,12.46050227,126.61,126.56,79.5599]
[1743553524713,12.46050227,126.6,126.56,79.5599]
[1743553524913,13.98030227,126.6,126.56,79.5599]
[1743553525313,20.36000227,126.59,126.56,79.5599]
[1743553526831,12.46050227,126.58,126.56,79.5599]
[1743553527434,7.9007,126.57,126.56,79.5599]
[1743553528212,27.37989631,126.57,126.56,79.5599]
[1743553528812,27.37989631,126.57,126.54,0.03]
[1743553529012,19.47919631,126.56,126.54,0.03]
[1743553529734,28.90149631,126.55,126.54,0.03]
[1743553530120,20.99949631,126.55,126.54,0.03]
[1743553531438,28.90149631,126.55,126.54,0.03]
[1743553532333,20.99949631,126.55,126.54,0.03]
[1743553533041,28.90149631,126.55,126.54,0.03]
[1743553533226,36.12581945,126.55,126.54,0.03]
[1743553533735,19.47919631,126.53,126.52,0.03]
[1743553536441,27.38239631,126.53,126.52,0.03]
[1743553538939,27.66671945,126.53,126.52,0.03]
[1743553540518,20.0,126.5,126.49,0.03]
[1743553540737,47.92191945,126.5,126.49,0.03]
[1743553541055,55.82701945,126.5,126.49,0.03]
[1743553549662,48.83386916,126.5,126.49,0.03]
[1743553550562,48.54954602,126.5,126.49,0.03]
[1743553551043,48.83386916,126.5,126.49,0.03]
[1743553554965,55.79386916,126.5,126.49,0.03]
[1743553556366,36.4458,126.5,126.49,0.03]
[1743553556546,48.93184602,126.5,126.49,0.03]
[1743553557068,41.97184602,126.5,126.49,0.03]
[1743553560573,40.39114602,126.5,126.49,0.03]
[1743553560985,12.48604602,126.5,126.49,0.03]
[1743553561149,27.33074602,126.51,126.49,0.03]
[1743553561455,12.48604602,126.5,126.49,0.03]
[1743553563158,20.39114602,126.5,126.49,0.03]
[1743553563774,20.67546916,126.5,126.49,0.03]
[1743553564766,27.33114602,126.5,126.49,0.03]
[1743553564969,20.39114602,126.5,126.49,0.03]
[1743553568186,27.33094602,126.51,126.49,0.03]
[1743553569087,12.48604602,126.5,126.49,0.03]
[1743553569683,7.9671,126.52,126.49,0.03]
[1743553569885,20.45314602,126.52,126.49,0.03]
[1743553570784,12.48604602,126.51,126.49,0.03]
[1743553570963,12.48604602,126.5,126.49,0.03]
[1743553571364,20.39114602,126.5,126.49,0.03]
[1743553571564,40.39114602,126.5,126.49,0.03]
[1743553574486,47.61546916,126.5,126.49,0.03]
[1743553577574,47.33114602,126.5,126.49,0.03]
[1743553577773,12.48604602,126.51,126.49,0.03]
[1743553577974,0.063,126.52,126.49,0.03]
[1743553577975,12.54904602,126.52,126.49,0.03]
[1743553578685,20.45314602,126.52,126.49,0.03]
[1743553579076,0.063,126.52,126.49,98.23954886]
[1743553581310,0.063,126.52,126.5,7.9051]
[1743553584497,0.063,126.52,126.5,87.465]
[1743553587799,0.063,126.52,126.5,79.5599]
[1743553588010,19.55245132,126.52,126.5,79.5599]
[1743553589205,0.063,126.52,126.5,79.5599]
[1743553597010,0.063,126.52,126.5,87.465]
[1743553599519,0.063,126.52,126.5,87.495]
[1743553602815,0.063,126.52,126.5,79.5899]
[1743553604118,0.063,126.52,126.5,87.4949]
[1743553604607,0.063,126.52,126.5,79.5899]
[1743553610427,0.063,126.52,126.5,87.495]
[1743553612120,0.063,126.52,126.5,79.5899]
[1743553614232,0.063,126.52,126.5,87.4948]
[1743553617233,0.063,126.52,126.5,79.5899]
[1743553618937,12.53590685,126.52,126.5,79.5899]
[1743553619435,7.9045,126.51,126.5,79.5899]
[1743553619731,20.37740685,126.51,126.5,79.5899]
[1743553619934,20.66172999,126.51,126.5,0.03]
[1743553620914,0.28432314,126.5,126.49,0.03]
[1743553621119,19.06832999,126.5,126.49,0.0001]
[1743553621521,26.97342999,126.5,126.49,0.0001]
[1743553622917,33.81342999,126.5,126.49,0.0001]
[1743553623536,26.97342999,126.5,126.49,0.0001]
[1743553623732,33.81342999,126.5,126.49,0.0001]
[1743553629440,33.52910685,126.5,126.49,0.0001]
[1743553629944,27.21800685,126.5,126.49,0.0001]
[1743553630338,19.31290685,126.5,126.49,0.0001]
[1743553630731,27.21800685,126.5,126.49,0.0001]
[1743553632645,20.37800685,126.5,126.49,0.0001]
[1743553635146,20.44100685,126.5,126.49,0.0001]
[1743553635347,27.28100685,126.5,126.49,0.0001]
[1743553643051,0.063,126.5,126.49,0.0001]
[1743553647154,0.063,126.5,126.49,26.55544886]
[1743553648448,0.063,126.5,126.49,28.30891043]
[1743553648648,0.063,126.52,126.51,18.64964886]
[1743553649029,0.063,126.52,126.51,18.79181043]
[1743553650137,0.063,126.52,126.51,26.838472]
[1743553654855,12.47290685,126.58,126.52,79.4339]
[1743553655159,12.47290685,126.58,126.53,18.64964886]
[1743553655734,12.47290685,126.55,126.52,79.4339]
[1743553656058,12.47290685,126.54,126.52,79.4339]
[1743553656777,12.47290685,126.55,126.52,79.4339]
[1743553656974,20.87730685,126.56,126.52,79.4339]
[1743553657140,19.31290685,126.56,126.52,79.4339]
[1743553657465,12.47290685,126.56,126.52,79.4339]
[1743553658059,7.9007,126.57,126.52,79.4339]
[1743553658060,20.37360685,126.57,126.52,79.4339]
[1743553658673,20.37360685,126.57,126.52,87.3376]
[1743553659967,20.37360685,126.57,126.52,79.4339]
[1743553661257,20.0,126.56,126.52,79.4339]
[1743553661463,32.47290685,126.56,126.52,79.4339]
[1743553661863,7.902,126.55,126.52,79.4339]
[1743553670568,20.37490685,126.55,126.52,79.4339]
[1743553670769,20.37610685,126.53,126.52,79.4339]
[1743553673859,20.0,126.51,126.5,0.03]
[1743553674173,32.47290685,126.51,126.5,0.03]
[1743553674352,34.04076319,126.51,126.5,0.03]
[1743553675886,41.94526319,126.51,126.5,0.03]
[1743553683696,14.7432,126.53,126.5,0.03]
[1743553684075,22.00606319,126.55,126.5,98.11354886]
[1743553688177,0.063,126.55,126.5,98.11354886]
[1743553688395,14.04076319,126.54,126.5,98.11354886]
[1743553690215,21.94386319,126.54,126.5,98.11354886]
[1743553690999,14.04076319,126.51,126.5,0.03]
[1743553692191,21.94526319,126.51,126.5,0.03]
[1743553692877,22.22958633,126.51,126.5,0.03]
[1743553695392,0.28432314,126.5,126.49,0.0001]
[1743553695682,14.32508633,126.5,126.49,0.0001]
[1743553697676,22.23018633,126.5,126.49,0.0001]
[1743553697876,78.39323909,126.5,126.49,0.0001]
[1743553698101,78.39323909,126.5,126.43,79.4639]
[1743553698102,20.0,126.47,126.43,79.4639]
[1743553698304,14.04076319,126.45,126.43,79.4639]
[1743553699418,21.94906319,126.45,126.43,79.4639]
[1743553699584,14.04076319,126.44,126.43,0.03]
[1743553701883,21.94956319,126.44,126.43,0.03]
[1743553705694,22.23388633,126.44,126.43,0.03]
[1743553705995,22.25767482,126.44,126.43,0.03]
[1743553707704,84.86933035,126.44,126.43,0.03]
[1743553708100,91.33313035,126.44,126.43,0.03]
[1743553708323,92.99573035,126.44,126.43,0.03]
[1743553708814,92.99573035,126.44,126.41,0.03]
[1743553708815,90.3227584,126.42,126.41,0.03]
[1743553709014,97.44708154,126.42,126.41,0.03]
[1743553710719,98.51718154,126.42,126.41,0.03]
[1743553710919,105.35718154,126.42,126.41,0.03]
[1743553712930,98.53754179,126.42,126.41,0.03]
[1743553713099,105.37754179,126.42,126.41,0.03]
[1743553716299,105.37754179,126.42,126.39,0.03]
[1743553716300,143.80249065,126.42,126.39,0.03]
[1743553716506,14.35294687,126.4,126.39,0.03]
[1743553718612,22.26424687,126.4,126.39,0.03]
[1743553723806,20.28432314,126.38,126.37,0.03]
[1743553724012,0.28432314,126.37,126.34,0.03]
[1743553724230,14.06862373,126.35,126.34,0.03]
[1743553724616,14.35294687,126.35,126.34,0.03]
[1743553724921,20.28432314,126.32,126.31,0.063]
[1743553725129,41.37294687,126.32,126.31,0.063]
[1743553725422,49.28934687,126.32,126.31,0.063]
[1743553727031,0.28432314,126.31,126.28,0.03]
[1743553727212,33.00259573,126.29,126.28,0.03]
[1743553727531,40.92149573,126.28,126.27,2.8967123]
[1743553727706,40.92149573,126.28,126.2,7.9913]
[1743553727707,20.0,126.25,126.2,7.9913]
[1743553728018,14.06862373,126.23,126.2,87.4252]
[1743553728219,14.06862373,126.22,126.2,87.4252]
[1743553729231,14.06862373,126.22,126.18,79.4339]
[1743553729425,14.06862373,126.22,126.18,79.4639]
[1743553730027,20.0,126.25,126.18,87.389]
[1743553730228,41.18862373,126.25,126.18,87.389]
[1743553732539,41.18862373,126.25,126.18,107.2019]
[1743553732730,14.06862373,126.24,126.18,107.2019]
[1743553737438,20.0,126.2,126.18,0.03]
[1743553737626,20.0,126.21,126.18,0.03]
[1743553737828,20.0,126.21,126.18,7.955]
[1743553738025,14.06862373,126.22,126.18,7.955]
[1743553738234,34.06862373,126.22,126.18,7.955]
[1743553738423,20.0,126.22,126.18,0.03]
[1743553738940,34.06862373,126.22,126.18,0.03]
[1743553742846,34.06862373,126.22,126.18,79.4639]
[1743553743548,14.06862373,126.21,126.18,79.4639]
[1743553744144,14.06862373,126.23,126.18,79.4639]
[1743553744338,34.06862373,126.24,126.19,18.64964886]
[1743553744650,20.0,126.24,126.19,99.71294886]
[1743553744832,34.06862373,126.24,126.19,99.71294886]
[1743553746044,41.99002373,126.24,126.19,99.71294886]
[1743553748523,34.06862373,126.24,126.19,99.71294886]
[1743553749246,34.06862373,126.24,126.19,107.63724886]
[1743553749445,20.0,126.24,126.19,107.63724886]
[1743553752454,41.99022373,126.24,126.19,99.71294886]
[1743553753133,14.06862373,126.22,126.19,79.4339]
[1743553755055,21.99092373,126.23,126.19,79.4339]
[1743553755652,14.06862373,126.23,126.19,79.4339]
[1743553756356,21.99072373,126.23,126.19,79.4339]
[1743553757060,14.06862373,126.22,126.19,79.4339]
[1743553757451,14.06862373,126.23,126.19,79.4339]
[1743553757655,34.06862373,126.24,126.19,87.3584]
[1743553761358,0.28432314,126.28,126.2,18.64964886]
[1743553761543,14.06862373,126.27,126.22,18.64964886]
[1743553761946,14.06862373,126.26,126.22,18.64964886]
[1743553762643,14.06862373,126.26,126.2,79.4339]
[1743553762644,14.06862373,126.24,126.2,79.4339]
[1743553762851,14.06862373,126.23,126.2,79.4339]
[1743553765767,14.06862373,126.24,126.2,79.4339]
[1743553768667,14.06862373,126.24,126.2,87.3577]
[1743553769164,14.06862373,126.24,126.2,79.4339]
[1743553769551,14.06862373,126.25,126.2,79.4339]
[1743553770147,14.06862373,126.25,126.2,87.3577]
[1743553771171,14.06862373,126.24,126.2,87.3577]
[1743553771863,14.06862373,126.24,126.2,79.4339]
[1743553774354,21.98932373,126.25,126.2,79.4339]
[1743553774561,14.06862373,126.24,126.2,79.4339]